[Event "Danish Skakligaen 2024-25"]
[Site "Denmark"]
[Date "2024.11.02"]
[Round "1.1"]
[White "Nielsen, Viktor Haarmark"]
[Black "Ochsner, Bjorn Moller"]
[Result "1-0"]
[ECO "A29"]
[WhiteElo "2343"]
[BlackElo "2512"]
[Annotator "TA"]
[PlyCount "95"]
[EventDate "2024.11.02"]
[EventType "team-tourn"]
[EventCountry "DEN"]
[SourceTitle "playchess.com"]
[Source "ChessBase"]
[SourceQuality "1"]
[TimeControl "40/5400+30:1800+30"]

{[%evp 13,95,7,17,24,22,16,25,0,0,-2,25,0,20,0,0,0,6,-4,0,0,25,20,50,29,61,59,93,88,148,157,162,153,158,91,126,85,162,162,158,125,135,136,127,147,312,169,280,288,297,324,331,324,361,337,363,275,570,425,422,430,456,439,440,406,440,338,319,329,645,622,912,864,1208,1125,1427,974,1461,1442,1389,1381,29981,29982,29982,29983]} 1. c4 {[%emt 0:00:04]} e5 {[%emt 0:00:20]} 2. Nc3 {[%emt 0:00:07]} Nf6 {[%emt 0:00:52]} 3. Nf3 {[%emt 0:00:08]} Nc6 {[%emt 0:00:30]} 4. g3 {[%emt 0:00:17]} Bb4 {[%emt 0:01:49]} 5. Nd5 {[%emt 0:00:34]} a5 {[%emt 0:03:00]} 6. Bg2 {[%emt 0:00:23]} O-O {[%emt 0:00:34]} 7. O-O {[%emt 0:02:24]} Re8 {[%emt 0:04:12]} 8. d3 {[%emt 0:00:22]} h6 {[%emt 0:04:30]} 9. a3 {[%emt 0:07:03]} Bc5 {[%emt 0:02:07]} 10. b3 {[%emt 0:02:59] White has an edge.} d6 {[%emt 0:10:17]} 11. Bb2 {[%emt 0:01:28]} Ba7 {[%emt 0:05:06]} 12. e3 {[%emt 0:08:12]} Be6 {[%emt 0:02:38]} 13. Nd2 {[%emt 0:03:31]} Bxd5 {[%emt 0:06:39]} 14. cxd5 {[%emt 0:00:43]} Ne7 {[%emt 0:00:28]} 15. e4 {[%emt 0:04:14]} h5 {[%emt 0:06:44]} 16. Nf3 {[%emt 0:02:18]} Ng6 {[%emt 0:03:58]} 17. Rc1 {[%emt 0:03:42]} Bb6 {[%emt 0:05:26]} 18. Bh3 {[%emt 0:02:35]} h4 {[%emt 0:03:35]} 19. Qd2 {[%emt 0:07:57]} (19. gxh4 Nf4 20. Ng5 Nh7 $17) 19... Nh7 {[%emt 0:10:27]} 20. Kg2 {[%emt 0:02:31]} Qf6 {[%emt 0:04:54]} (20... Nf6 $142) 21. Bf5 $16 {[%emt 0:03:31] Active counter play!} Nhf8 {[%emt 0:03:20]} 22. d4 {[%emt 0:02:47]} Rad8 {[%emt 0:01:06]} 23. Bc3 {[%emt 0:10:47]} ({Better is} 23. Rc2) 23... Ra8 {[%emt 0:01:11]} 24. Rfe1 {[%emt 0:09:08]} Qe7 {[%emt 0:03:34]} (24... c6 $16) 25. Rc2 $18 {[%emt 0:03:59]} Red8 {[%emt 0:02:19]} 26. Qc1 {[%emt 0:02:07]} Re8 {[%emt 0:01:28]} 27. dxe5 {[%emt 0:01:25]} Nxe5 {[%emt 0:03:32][%cal Oh4h3]} 28. Qd1 {[%emt 0:07:21]} (28. Nxh4 Nd3 29. Qd1 Nxe1+ 30. Bxe1 (30. Qxe1 g6 $11) 30... g6 $11) 28... g6 $2 {[%emt 0:01:47] [#] Black cannot hold the game after this.} (28... a4 $16) 29. Bh3 {[%emt 0:00:23]} (29. Nxh4 $142 {[%cal Of2f4] Strongly threatening f4!} a4 30. b4) 29... hxg3 {[%emt 0:02:40]} (29... Nxf3 $142 30. Qxf3 Qg5) 30. hxg3 {[%emt 0:00:48]} Nh7 {[%emt 0:00:05]} 31. Bb2 {[%emt 0:04:02]} Nf6 {[%emt 0:02:07]} 32. Nd4 {[%emt 0:02:12]} Ned7 {[%emt 0:01:17]} 33. Rce2 {[%emt 0:00:40]} Nh7 {[%emt 0:02:25]} 34. Qd2 {[%emt 0:00:33][%cal Od4e6] aiming for Ne6!} Ndf6 $2 {[%emt 0:00:40]} (34... Bxd4 {might work better.} 35. Qxd4 (35. Bxd4 Ndf6 $18) 35... Ndf6) 35. Nf3 {[%emt 0:02:18]} Qf8 {[%emt 0:01:06]} 36. Ng5 {[%emt 0:01:06]} ({Less strong is} 36. e5 dxe5 37. Nxe5 (37. Rxe5 Qc5 $14) 37... Qc5 $16) 36... Nxg5 {[%emt 0:00:26]} 37. Qxg5 {[%emt 0:00:34]} ({Don't take} 37. Bxf6 Nh7 $18) 37... Nh7 {[%emt 0:00:25]} 38. Qd2 {[%emt 0:00:13] Black is weak on the light squares} Re7 {[%emt 0:01:14]} 39. Qc3 {[%emt 0:01:27]} f6 {[%emt 0:00:06]} 40. Be6+ {[%emt 0:00:28]} Kg7 $2 {[%emt 0:01:03]} (40... Rxe6 41. dxe6 Qe7) 41. f4 {[%emt 0:31:57]} c6 {[%emt 0:07:20]} 42. g4 {[%emt 0:00:00]} Rae8 {[%emt 0:04:08]} 43. Rh1 {[%emt 0:00:00]} Rxe6 {[%emt 0:04:05]} 44. dxe6 {[%emt 0:00:00] [#] Threatening mate with Qh3.} Rxe6 {[%emt 0:00:19]} 45. Qh3 {[%emt 0:00:00]} Qg8 {[%emt 0:00:11]} 46. Qh6+ {[%emt 0:00:00]} Kh8 {[%emt 0:00:25]} 47. Kf1 {[%emt 0:00:00]} Qg7 {[%emt 0:00:52]} 48. Reh2 {[%emt 0:00:00] Weighted Error Value: White=0.26 (precise) /Black=0.52.  Loses game:     	---       	Black=1      Mistake:       	White=2     	Black=5      Inaccurate:     	White=1     	Black=6      OK:         	White=13    	Black=7      Best:        	---       	Black=1} 1-0

[Event "Danish Skakligaen 2024-25"]
[Site "Denmark"]
[Date "2024.11.02"]
[Round "1.2"]
[White "Pantzar, Milton"]
[Black "Olsen, Filip Boe"]
[Result "1/2-1/2"]
[ECO "D35"]
[WhiteElo "2453"]
[BlackElo "2470"]
[Annotator "TA"]
[PlyCount "63"]
[EventDate "2024.11.02"]
[EventType "team-tourn"]
[EventCountry "DEN"]
[SourceTitle "playchess.com"]
[Source "ChessBase"]
[SourceQuality "1"]
[TimeControl "40/5400+30:1800+30"]

{[%evp 12,63,20,8,21,12,5,10,20,19,8,9,8,0,0,0,19,16,16,0,10,0,5,0,0,0,14,15,14,0,7,0,0,0,32,0,0,0,35,33,28,23,48,0,0,0,0,0,0,0,0,0,0,0]} 1. d4 {[%emt 0:00:21]} d5 {[%emt 0:00:19]} 2. c4 {[%emt 0:01:47]} e6 {[%emt 0:00:11]} 3. Nc3 {[%emt 0:00:12]} Nf6 {[%emt 0:00:08]} 4. cxd5 {[%emt 0:00:16]} exd5 {[%emt 0:00:02]} 5. Bg5 {[%emt 0:00:12]} Be7 {[%emt 0:00:21]} 6. e3 {[%emt 0:00:27]} h6 {[%emt 0:00:08]} 7. Bh4 {[%emt 0:04:28]} Bg4 {[%emt 0:00:27]} 8. Be2 {[%emt 0:03:11]} Bxe2 {[%emt 0:00:12]} 9. Ngxe2 {[%emt 0:00:12] And now Bxf6 would win.} Nbd7 {[%emt 0:00:59]} 10. O-O {[%emt 0:01:42]} O-O {[%emt 0:00:50]} 11. a4 {[%emt 0:13:18][%cal Ba2a4,Ba4a5][%mdl 32]} c6 {[%emt 0:11:26]} 12. Qb3 {[%emt 0:04:19]} Qb6 {[%emt 0:10:31]} 13. Qc2 {[%emt 0:06:07]} Rfe8 {[%emt 0:04:09]} 14. a5 {[%emt 0:04:24]} Qd8 {[%emt 0:02:03]} 15. h3 {[%emt 0:06:22]} Nh5 {[%emt 0:05:10]} 16. Bxe7 {[%emt 0:00:46]} Qxe7 {[%emt 0:02:33] [#]} 17. b4 $1 {[%emt 0:06:05]} a6 $1 {[%emt 0:05:33]} 18. Na4 {[%emt 0:01:44]} g6 {[%emt 0:17:18]} 19. Nc5 {[%emt 0:02:59]} Rab8 {[%emt 0:02:38]} 20. Rae1 {[%emt 0:05:18]} Ng7 {[%emt 0:04:43]} 21. Nf4 {[%emt 0:04:46][%cal Be2f4,Bf4d3,Bd3e5][%mdl 32]} Nf5 {[%emt 0:01:05]} 22. g4 {[%emt 0:06:32]} Ng7 {[%emt 0:06:20]} 23. f3 {[%emt 0:02:45]} Nxc5 {[%emt 0:10:10]} 24. bxc5 {[%emt 0:00:29]} Ne6 {[%emt 0:01:19]} 25. Nd3 {[%emt 0:01:54]} Qc7 {[%emt 0:01:16]} 26. Ne5 {[%emt 0:06:46]} Nf8 {[%emt 0:01:31][%cal Of7f6]} 27. Qd2 {[%emt 0:04:50]} (27. f4 $1 $14) 27... f6 $11 {[%emt 0:02:09] The position is equal.} 28. Nd3 {[%emt 0:00:09]} Qg3+ {[%emt 0:00:09]} 29. Qg2 {[%emt 0:00:12]} Qc7 {[%emt 0:00:24]} 30. Qd2 {[%emt 0:04:54]} Qg3+ {[%emt 0:00:08]} 31. Qg2 {[%emt 0:00:12]} Qc7 {[%emt 0:00:05]} 32. Qd2 {[%emt 0:01:58] Weighted Error Value: White=0.07 (flawless) /Black=0.07 (flawless) .  Mistake:       	White=1     	---        Inaccurate:     	White=1     	Black=2      OK:         	White=9     	Black=11     Best:        	White=2     	---        Strong:       	---       	Black=1} 1/2-1/2

[Event "Danish Skakligaen 2024-25"]
[Site "Denmark"]
[Date "2024.11.02"]
[Round "1.2"]
[White "Vasli, Aref"]
[Black "Kistrup, Nicolai"]
[Result "0-1"]
[ECO "A08"]
[WhiteElo "2410"]
[BlackElo "2420"]
[Annotator "TA"]
[PlyCount "84"]
[EventDate "2024.11.02"]
[EventType "team-tourn"]
[EventCountry "DEN"]
[SourceTitle "playchess.com"]
[Source "ChessBase"]
[SourceQuality "1"]
[TimeControl "40/5400+30:1800+30"]

{[%evp 16,84,-11,0,-6,-12,-4,-20,-15,-21,-35,-21,-16,-26,-2,-3,0,-62,-44,-47,-40,-54,-40,-93,-66,-125,-103,-175,-175,-179,-170,-166,-174,-191,-183,-191,-167,-177,-126,-207,-207,-261,-264,-282,-272,-361,-359,-451,-470,-471,-437,-489,-488,-460,-479,-490,-441,-503,-492,-694,-625,-644,-625,-892,-825,-1409,-1202,-2855,-2107,-1905,-1616]} 1. Nf3 {[%emt 0:00:04]} d5 {[%emt 0:00:05]} 2. g3 {[%emt 0:00:10]} c5 {[%emt 0:00:42]} 3. Bg2 {[%emt 0:00:09]} Nc6 {[%emt 0:00:20]} 4. d4 {[%emt 0:02:30]} Nf6 {[%emt 0:00:33]} 5. O-O {[%emt 0:00:36]} e6 {[%emt 0:00:22]} 6. c3 {[%emt 0:01:31]} Be7 {[%emt 0:01:29]} 7. Nbd2 {[%emt 0:05:33][%cal Bb1d2,Bd2f3,Bf3e5][%mdl 32]} cxd4 {[%emt 0:13:26]} 8. Nxd4 {[%emt 0:00:44]} Nxd4 {[%emt 0:01:08]} 9. cxd4 {[%emt 0:00:12]} Qb6 {[%emt 0:00:30]} 10. Nf3 {[%emt 0:05:59]} O-O {[%emt 0:00:20]} 11. b3 {[%emt 0:12:21]} Bd7 {[%emt 0:12:30] The position is equal.} 12. Ne5 {[%emt 0:00:27]} Bb5 {[%emt 0:03:43]} 13. a4 {[%emt 0:03:15]} Ba6 {[%emt 0:03:51]} 14. Bg5 {[%emt 0:03:46]} Rfe8 {[%emt 0:12:41]} 15. Rb1 {[%emt 0:06:42][%cal Ob3b4]} Qb4 {[%emt 0:13:47]} 16. f3 {[%emt 0:10:03] Against Ne4} ({White should play} 16. Be3 $11) 16... Nd7 {[%emt 0:07:33]} 17. Bxe7 {[%emt 0:09:31]} Rxe7 {[%emt 0:01:06]} 18. Nxd7 {[%emt 0:21:35]} Rxd7 {[%emt 0:00:08]} 19. Rc1 {[%emt 0:00:08] Repels Rc8} ({Better is} 19. f4 $15) 19... Rdd8 {[%emt 0:01:18] Black is more active.} 20. Rf2 {[%emt 0:01:33]} (20. f4 $15) 20... Rac8 $17 {[%emt 0:01:24]} 21. e3 {[%emt 0:01:21]} (21. Rb1 $17) 21... Rc3 $19 {[%emt 0:06:43]} 22. Qe1 {[%emt 0:05:14]} Rxb3 {[%emt 0:05:30]} 23. Qxb4 {[%emt 0:01:28]} Rxb4 {[%emt 0:00:02]} 24. Ra2 {[%emt 0:00:17]} Bc4 {[%emt 0:02:24]} 25. Raa1 {[%emt 0:01:56]} Rd6 {[%emt 0:00:54]} 26. Bf1 {[%emt 0:04:22]} Rc6 {[%emt 0:01:20]} (26... a5 $19 27. g4 Rdb6) 27. Rcb1 {[%emt 0:00:23]} (27. a5 $17) 27... a5 {[%emt 0:04:14]} 28. Rc1 {[%emt 0:00:35]} Kf8 {[%emt 0:00:16]} 29. f4 {[%emt 0:01:59]} Ke7 {[%emt 0:01:31]} 30. Kf2 {[%emt 0:00:27]} Kd6 {[%emt 0:01:26]} 31. Kf3 {[%emt 0:00:35]} Bxf1 {[%emt 0:02:10] Black is clearly winning.} 32. Rxf1 {[%emt 0:00:02][%mdl 4096] Endgame. KRR-KRR} Rcc4 33. Rfb1 {[%emt 0:00:02]} Rxb1 {[%emt 0:01:56]} ({Not} 33... Rxa4 34. Rxa4 Rxa4 35. Rxb7 $17) 34. Rxb1 {[%emt 0:00:02] KR-KR} Kc6 {[%emt 0:00:14]} ({Weaker is} 34... Rxa4 35. Rxb7 Rc4 36. Ke2 $17) 35. Ra1 {[%emt 0:00:02]} b5 {[%emt 0:00:38]} 36. axb5+ {[%emt 0:00:14]} Kxb5 {[%emt 0:00:05]} 37. g4 {[%emt 0:00:32]} (37. Ke2 $142) 37... a4 {[%emt 0:00:29]} 38. f5 {[%emt 0:00:17]} Kb4 {[%emt 0:00:46]} 39. Rb1+ {[%emt 0:00:13]} Kc3 {[%emt 0:00:21] ...a3 is the strong threat.} 40. Rb7 {[%emt 0:00:44]} exf5 {[%emt 0:00:36]} 41. gxf5 {[%emt 0:30:10]} a3 {[%emt 0:30:25]} 42. Rxf7 {[%emt 0:00:04]} a2 {[%emt 0:00:55] Weighted Error Value: White=0.62/Black=0.07 (flawless) .  Mistake:       	White=6     	Black=1      Inaccurate:     	White=1     	---        OK:         	White=8     	Black=14     Best:        	---       	Black=2} 0-1

[Event "Danish Skakligaen 2024-25"]
[Site "Denmark"]
[Date "2024.11.02"]
[Round "1.2"]
[White "Rasmussen, Karsten"]
[Black "Skonnord, Uno"]
[Result "1-0"]
[ECO "A00"]
[WhiteElo "2391"]
[BlackElo "2162"]
[Annotator "RC"]
[PlyCount "111"]
[EventDate "2024.11.02"]
[EventType "team-tourn"]
[EventCountry "DEN"]
[SourceTitle "playchess.com"]
[Source "ChessBase"]
[SourceQuality "1"]
[TimeControl "40/5400+30:1800+30"]

1. g3 {[%emt 0:00:06]} c5 {[%emt 0:00:26]} 2. Bg2 {[%emt 0:00:07]} g6 {[%emt 0:00:07]} 3. Nf3 {[%emt 0:00:37]} Bg7 {[%emt 0:00:06]} 4. O-O {[%emt 0:00:33]} Nc6 {[%emt 0:00:05]} 5. e4 {[%emt 0:02:18]} d6 {[%emt 0:01:11]} 6. c3 {[%emt 0:01:20]} Nf6 {[%emt 0:01:30]} 7. d4 {[%emt 0:06:53]} cxd4 {[%emt 0:02:21]} 8. cxd4 {[%emt 0:00:31]} O-O {[%emt 0:09:59]} 9. d5 {[%emt 0:14:04]} Nb4 {[%emt 0:04:00]} 10. Nc3 {[%emt 0:01:40]} a5 {[%emt 0:17:12]} 11. h3 {[%emt 0:12:12]} Bd7 {[%emt 0:09:28]} 12. Be3 {[%emt 0:02:41]} a4 {[%emt 0:14:58]} 13. a3 {[%emt 0:20:10]} Na6 {[%emt 0:00:12]} 14. e5 {[%emt 0:00:10]} Ne8 {[%emt 0:10:07]} 15. e6 {[%emt 0:05:57]} fxe6 {[%emt 0:03:45]} 16. dxe6 {[%emt 0:00:51]} Bc6 {[%emt 0:05:25]} 17. Nxa4 {[%emt 0:01:27]} Nec7 {[%emt 0:08:42]} 18. Nb6 {[%emt 0:14:31]} Rb8 {[%emt 0:00:05]} 19. Ng5 {[%emt 0:00:13]} Rf5 {[%emt 0:00:50]} 20. Nd7 {[%emt 0:05:33]} Bxd7 {[%emt 0:00:53]} 21. exd7 {[%emt 0:00:03]} e6 {[%emt 0:00:56]} 22. h4 {[%emt 0:04:16]} Qxd7 {[%emt 0:00:20]} 23. Qd2 {[%emt 0:01:09]} d5 {[%emt 0:04:01]} 24. Bh3 {[%emt 0:00:41]} Rff8 {[%emt 0:00:26]} 25. Rad1 {[%emt 0:01:25]} Rbe8 {[%emt 0:02:39]} 26. Rfe1 {[%emt 0:00:35]} Qe7 {[%emt 0:02:36]} 27. b4 {[%emt 0:01:35]} h6 {[%emt 0:00:14]} 28. b5 {[%emt 0:01:05]} Nb8 {[%emt 0:00:54]} 29. b6 {[%emt 0:00:36]} hxg5 {[%emt 0:00:35]} 30. Bxg5 {[%emt 0:00:41]} Qd7 {[%emt 0:00:41]} 31. bxc7 {[%emt 0:00:10]} Nc6 {[%emt 0:00:34]} 32. Qe3 {[%emt 0:01:41]} Qxc7 {[%emt 0:00:23]} 33. Bxe6+ {[%emt 0:00:10]} Kh7 {[%emt 0:00:33]} 34. h5 {[%emt 0:00:16]} Ne5 {[%emt 0:00:31]} 35. hxg6+ {[%emt 0:00:47]} Kh8 {[%emt 0:00:32]} 36. Bf7 {[%emt 0:00:48]} Nxf7 {[%emt 0:00:39]} 37. Qxe8 {[%emt 0:00:32]} Nxg5 {[%emt 0:00:13]} 38. Qe2 {[%emt 0:00:18]} Nf3+ {[%emt 0:00:10]} 39. Kg2 {[%emt 0:00:04]} Nxe1+ {[%emt 0:00:31]} 40. Rxe1 {[%emt 0:00:04]} Rf6 {[%emt 0:01:00]} 41. Qh5+ {[%emt 0:11:15]} Kg8 {[%emt 0:00:09]} 42. Qxd5+ {[%emt 0:00:07]} Kf8 {[%emt 0:00:57]} 43. Rc1 {[%emt 0:02:22]} Rc6 {[%emt 0:05:08]} 44. Qf5+ {[%emt 0:02:51]} Kg8 {[%emt 0:01:18]} 45. Re1 {[%emt 0:08:06]} Bh6 {[%emt 0:17:07]} 46. Rd1 {[%emt 0:02:03]} Qe7 {[%emt 0:02:40]} 47. Rd7 {[%emt 0:03:31]} Qe6 {[%emt 0:01:21]} 48. Rd8+ {[%emt 0:03:03]} Kg7 {[%emt 0:00:08]} 49. Rd7+ {[%emt 0:00:10]} Kg8 {[%emt 0:00:07]} 50. Qxe6+ {[%emt 0:02:00]} Rxe6 {[%emt 0:00:07]} 51. Rxb7 {[%emt 0:00:03]} Ra6 {[%emt 0:01:12]} 52. f4 {[%emt 0:00:30]} Rxa3 {[%emt 0:00:23]} 53. f5 {[%emt 0:00:31]} Bg5 {[%emt 0:01:22]} 54. Rf7 {[%emt 0:01:04]} Ra6 {[%emt 0:00:39]} 55. Kf3 {[%emt 0:00:26]} Rf6 {[%emt 0:01:16]} 56. Kg4 {[%emt 0:00:09]} 1-0

[Event "Danish Skakligaen 2024-25"]
[Site "Denmark"]
[Date "2024.11.02"]
[Round "1.2"]
[White "Fries-Nielsen, Jens Ove"]
[Black "Brynell, Stellan"]
[Result "1/2-1/2"]
[ECO "D05"]
[WhiteElo "2334"]
[BlackElo "2368"]
[Annotator "RC"]
[PlyCount "135"]
[EventDate "2024.11.02"]
[EventType "team-tourn"]
[EventCountry "DEN"]
[SourceTitle "playchess.com"]
[Source "ChessBase"]
[SourceQuality "1"]
[TimeControl "40/5400+30:1800+30"]

1. d4 {[%emt 0:02:06]} Nf6 {[%emt 0:00:19]} 2. Nf3 {[%emt 0:02:44]} e6 {[%emt 0:00:15]} 3. e3 {[%emt 0:00:23]} d5 {[%emt 0:01:18]} 4. Bd3 {[%emt 0:01:37]} c5 {[%emt 0:00:08]} 5. b3 {[%emt 0:00:40]} Nc6 {[%emt 0:00:13]} 6. Bb2 {[%emt 0:00:29]} Bd6 {[%emt 0:04:04]} 7. Nbd2 {[%emt 0:08:11]} O-O {[%emt 0:06:23]} 8. O-O {[%emt 0:12:50]} Qe7 {[%emt 0:07:36]} 9. dxc5 {[%emt 0:09:15]} Bxc5 {[%emt 0:00:26]} 10. e4 {[%emt 0:00:23]} dxe4 {[%emt 0:28:00]} 11. Nxe4 {[%emt 0:00:56]} Nxe4 {[%emt 0:00:09]} 12. Bxe4 {[%emt 0:00:06]} Rd8 {[%emt 0:00:33]} 13. Qe2 {[%emt 0:01:11]} Bd7 {[%emt 0:02:03]} 14. a3 {[%emt 0:02:08]} Be8 {[%emt 0:06:03]} 15. Rfe1 {[%emt 0:08:42]} Rac8 {[%emt 0:02:25]} 16. Bd3 {[%emt 0:10:56]} Bd7 {[%emt 0:20:12]} 17. b4 {[%emt 0:02:53]} Bd6 {[%emt 0:00:35]} 18. c4 {[%emt 0:01:41]} b6 {[%emt 0:00:32]} 19. Rac1 {[%emt 0:02:46]} h6 {[%emt 0:00:48]} 20. Bb1 {[%emt 0:02:04]} a5 {[%emt 0:05:47]} 21. c5 {[%emt 0:02:08]} bxc5 {[%emt 0:00:15]} 22. bxc5 {[%emt 0:00:18]} Bc7 {[%emt 0:00:09]} 23. Qc2 {[%emt 0:02:41]} f5 {[%emt 0:02:18]} 24. Qc4 {[%emt 0:00:40]} Qf7 {[%emt 0:02:46]} 25. Ba2 {[%emt 0:00:26]} Rb8 {[%emt 0:00:48]} 26. Ba1 {[%emt 0:00:54]} Ne7 {[%emt 0:01:37]} 27. Ne5 {[%emt 0:04:26]} Bxe5 {[%emt 0:00:06]} 28. Bxe5 {[%emt 0:00:08]} Rbc8 {[%emt 0:00:31]} 29. Bd6 {[%emt 0:09:02]} Nd5 {[%emt 0:00:40]} 30. Qa6 {[%emt 0:00:36]} Bc6 {[%emt 0:01:29]} 31. Qe2 {[%emt 0:01:59]} Re8 {[%emt 0:00:34]} 32. Qd2 {[%emt 0:01:21]} Qg6 {[%emt 0:01:15]} 33. f3 {[%emt 0:00:40]} Ra8 {[%emt 0:01:28]} 34. Rb1 {[%emt 0:01:13]} a4 {[%emt 0:01:56]} 35. Rb2 {[%emt 0:00:37]} Kh7 {[%emt 0:00:16]} 36. Qd4 {[%emt 0:01:34]} Qf6 {[%emt 0:02:08]} 37. Be5 {[%emt 0:00:08]} Qg5 {[%emt 0:00:20]} 38. h4 {[%emt 0:00:30]} Qe7 {[%emt 0:00:44]} 39. Bb1 {[%emt 0:00:28]} Rad8 {[%emt 0:00:46]} 40. Rbe2 {[%emt 0:00:39]} Qf7 {[%emt 0:00:48]} 41. Bd6 {[%emt 0:33:04]} Rd7 {[%emt 0:06:59]} 42. Bc2 {[%emt 0:00:00]} Rb7 {[%emt 0:01:57]} 43. g4 {[%emt 0:00:00]} g6 {[%emt 0:00:08]} 44. h5 {[%emt 0:00:00]} gxh5 {[%emt 0:00:35]} 45. Rxe6 {[%emt 0:00:00]} Rxe6 {[%emt 0:04:15]} 46. Rxe6 {[%emt 0:00:00]} hxg4 {[%emt 0:00:19]} 47. fxg4 {[%emt 0:00:00]} Qxe6 {[%emt 0:04:30]} 48. Bxf5+ {[%emt 0:00:00]} Qxf5 {[%emt 0:00:11]} 49. gxf5 {[%emt 0:00:00]} Rb3 {[%emt 0:06:32]} 50. Bf8 {[%emt 0:00:00]} Rg3+ {[%emt 0:03:36]} 51. Kf2 {[%emt 0:00:00]} Nc3 {[%emt 0:00:15]} 52. Qh4 {[%emt 0:03:32]} Ne4+ {[%emt 0:02:33]} 53. Qxe4 {[%emt 0:05:43]} Bxe4 {[%emt 0:00:07]} 54. Kxg3 {[%emt 0:00:06]} Bxf5 {[%emt 0:00:13]} 55. Kf4 {[%emt 0:00:13]} Bh3 {[%emt 0:03:02]} 56. Ke5 {[%emt 0:00:54]} Kg8 {[%emt 0:00:41]} 57. Bxh6 {[%emt 0:00:17]} Kf7 {[%emt 0:00:05]} 58. Kd6 {[%emt 0:00:13]} Ke8 {[%emt 0:00:10]} 59. Bg5 {[%emt 0:00:03]} Bg2 {[%emt 0:01:23]} 60. Kc7 {[%emt 0:00:48]} Bf3 {[%emt 0:00:08]} 61. c6 {[%emt 0:01:25]} Be4 {[%emt 0:00:14]} 62. Kb6 {[%emt 0:00:11]} Bf3 {[%emt 0:00:26]} 63. Kb5 {[%emt 0:00:35]} Bg2 {[%emt 0:00:19]} 64. Kb6 {[%emt 0:00:45]} Bf3 {[%emt 0:00:09]} 65. Kc7 {[%emt 0:01:14]} Bg2 {[%emt 0:00:35]} 66. Kd6 {[%emt 0:00:26]} Bf3 {[%emt 0:00:42]} 67. c7 {[%emt 0:00:29]} Bb7 {[%emt 0:01:53]} 68. c8=Q+ {[%emt 0:00:22]} 1/2-1/2